Cogmind - Beta 11.1 @@@ ROGUE MODE // 2022.12.10 @ 00:24:33 Player: L1l7 Result: Self-destructed Performance ------------- Evolutions (1) 500 Regions Visited (3) 600 Robots Destroyed (4) 20 Value Destroyed (133) 133 Prototype IDs (1) 20 Alien Tech Used (0) 0 Bonus (0) 0 TOTAL SCORE: 1273 Bonus ------- None Cogmind --------- Core Integrity 46/400 Matter 280/300 Energy 100/100 System Corruption 1% Temperature Cool (0) Movement Core (250) Ox4 Location -9/Mines Parts ------- > --- POWER (1) -------- (None) > --- PROPULSION (3) --- (None) > --- UTILITY (3) ------ Sensor Drone Bay (15/20) > --- WEAPON (2) ------- (None) > --- INVENTORY (5) ---- Ion Engine Improved Heat Sink Particle Gun Heavy Assault Rifle Peak State ------------ > --- POWER ------------ Ion Engine > --- PROPULSION ------- Aluminum Leg Aluminum Leg Improved Aluminum Leg > --- UTILITY ---------- Small Storage Unit Improved Terrain Scanner Seismic Detector > --- WEAPON ----------- Small Laser Light Assault Rifle > --- INVENTORY -------- Ion Engine Light Treads Heat Sink Improved Heat Sink Particle Gun Heavy Assault Rifle [Rating: 13] Favorites ----------- Power Ion Engine Engine Ion Engine Propulsion Aluminum Leg Leg Aluminum Leg Utility Seismic Detector Device Seismic Detector Storage Small Storage Unit Weapon Small Laser Energy Gun Small Laser Ballistic Gun Light Assault Rifle Build | -11 -10 -9 -9 ------- Run | Scr Mat Mat Min Slots Evolved 2 | . . 2 . Power . | . . . . Propulsion 1 | . . 1 . Utility 1 | . . 1 . Weapon . | . . . . Parts Attached 10 | 7 . 2 1 Power 1 | 1 . . . Engine 1 | 1 . . . Core . | . . . . Reactor . | . . . . Propulsion 3 | 2 . 1 . Treads . | . . . . Leg 3 | 2 . 1 . Wheel . | . . . . Hover . | . . . . Flight . | . . . . Utility 4 | 2 . 1 1 Device 3 | 1 . 1 1 Storage 1 | 1 . . . Processor . | . . . . Hackware . | . . . . Protection . | . . . . Artifact . | . . . . Weapon 2 | 2 . . . Energy Gun 1 | 1 . . . Energy Cannon . | . . . . Ballistic Gun 1 | 1 . . . Ballistic Cannon . | . . . . Launcher . | . . . . Special Weapon . | . . . . Impact Weapon . | . . . . Slashing Weapon . | . . . . Piercing Weapon . | . . . . Special Melee Weapon . | . . . . Unidentified Prototypes 1 | . . . 1 Parts Lost 4 | . . 4 . Power . | . . . . Propulsion 2 | . . 2 . Utility 1 | . . 1 . Weapon 1 | . . 1 . Highest Loss Streak 4 | . . 4 . To Critical Strikes . | . . . . Average Slot Usage (%) 63 | . 100 74 9 Engine 7 | . 14 8 . Leg 17 | . 28 22 . Device 13 | . 14 17 9 Storage 7 | . 14 8 . Energy Gun 7 | . 14 8 . Ballistic Gun 7 | . 14 8 . Naked Turns 78 | . . 49 29 Heaviest Build 14 | 13 13 14 14 Greatest Support 33 | 20 20 33 3 Greatest Overweight (x) 4 | . . . 4 Average Overweight (x) . | . . . . Largest Inventory Capacity 8 | 8 8 8 5 Average Capacity 6 | 5 8 7 5 Most Carried 6 | 3 4 6 5 Average Carried 3 | 1 2 4 4 Final Capacity 8 | 8 8 5 5 Final Carried 5 | 2 4 5 4 Class Distribution -------------------- 100% | Mutant Dominant Class ---------------- Mutant | -10/Materials Mutant | -9/Materials Mutant | -9/Mines Resources | -11 -10 -9 -9 ----------- Run | Scr Mat Mat Min Matter Collected 311 | 260 25 26 . Remotely . | . . . . Salvage Created 142 | 16 74 52 . Parts 11 | 3 4 4 . Haulers Intercepted . | . . . . Recyclers Shooed 1 | 1 . . . Parts Field Recycled . | . . . . Retrieved Matter . | . . . . Parts Self-Destructed . | . . . . Prevented . | . . . . Kills | -11 -10 -9 -9 ------- Run | Scr Mat Mat Min Combat Hostiles Destroyed 3 | . 2 1 . Guns 3 | . 2 1 . Classes Destroyed 3 | 1 1 1 . Tunneler 1 | 1 . . . Grunt 2 | . 2 . . Sentry 1 | . . 1 . Best Kill Streak 2 | 1 2 1 . Combat Bots Only 2 | . 2 1 . Max Kills in Single Turn 1 | 1 1 1 . Gunslinging . | . . . . Exploded . | . . . . Melee . | . . . . Uniques/NPCs Destroyed . | . . . . Combat | -11 -10 -9 -9 -------- Run | Scr Mat Mat Min Damage Taken 910 | . 171 739 . Core 392 | . 38 354 . Absorbed by Shields . | . . . . Core Remaining (%) 92 | 100 84 . . Volleys Fired 26 | 3 17 6 . Largest 2 | 2 2 2 . Hottest 60 | 60 60 60 . Shots Fired 52 | 6 34 12 . Gun 52 | 6 34 12 . Cannon . | . . . . Launcher . | . . . . Special . | . . . . Kinetic 26 | 3 17 6 . Thermal 26 | 3 17 6 . Explosive . | . . . . Electromagnetic . | . . . . Robot Hit Streak 13 | 4 13 5 . Robot Miss Streak 4 | 1 4 1 . Penetration Max . | . . . . Secondary Targets . | . . . . Shots Hit Robots 39 | 4 26 9 . Core Hits 13 | 2 7 4 . Critical Kills 1 | 1 . . . Critical Parts Destroyed . | . . . . Critical Strikes 1 | 1 . . . Destroy 1 | 1 . . . Melee Attacks . | . . . . Impact . | . . . . Slashing . | . . . . Piercing . | . . . . Sneak Attacks . | . . . . Combat Hostiles . | . . . . Follow-up Attacks . | . . . . Damage Inflicted 385 | 35 250 100 . Guns 369 | 35 249 85 . Cannons . | . . . . Explosions . | . . . . Melee . | . . . . Ramming 16 | . 1 15 . Kinetic 167 | 23 104 40 . Thermal 202 | 12 145 45 . Explosive . | . . . . Electromagnetic . | . . . . Impact . | . . . . Slashing . | . . . . Piercing . | . . . . Highest Corruption 1 | . . 1 1 Average Corruption 1 | . . 1 1 Corruption Purged . | . . . . Corruption Blocked . | . . . . Effects 1 | . . . 1 Matter Fused 1 | . . . 1 Overload Shots . | . . . . Overflow Damage . | . . . . Projectiles . | . . . . Explosions . | . . . . Melee . | . . . . Knockbacks . | . . . . Impact . | . . . . Kinetic . | . . . . Secondary . | . . . . Self-Inflicted Damage 6 | . . 6 . Shots . | . . . . Rammed 4 | . . 4 . Targets Rammed 5 | . 1 4 . Kicked 1 | . 1 . . Crushed . | . . . . Highest Temperature 161 | 40 161 14 . Average Temperature 61 | 23 80 10 . Received Heat Transfer 360 | . 99 261 . Siege Activations . | . . . . Robots Corrupted . | . . . . Combat Hostiles . | . . . . Parts Fried . | . . . . Impact Corruptions . | . . . . Robots Melted . | . . . . Combat Hostiles . | . . . . Parts Melted . | . . . . Heat Transferred 450 | 25 325 100 . Parts Sabotaged . | . . . . Parts Stolen . | . . . . Parts Stripped . | . . . . Power Chain Reactions . | . . . . Missiles Intercepted . | . . . . Alert | -11 -10 -9 -9 ------- Run | Scr Mat Mat Min Peak Influence 162 | 5 125 162 63 Initial 63 | . 3 52 63 Average 61 | 2 66 100 43 Maximum Alert Level . | . . . . Low Security (%) 100 | 100 100 100 100 Level 1 . | . . . . Level 2 . | . . . . Level 3 . | . . . . Level 4 . | . . . . Level 5 . | . . . . High Security . | . . . . Max Security . | . . . . Squads Dispatched 1 | . . 1 . Investigation . | . . . . Extermination . | . . . . Reinforcement 1 | . . 1 . Assault . | . . . . Garrison . | . . . . Intercept . | . . . . Searches Triggered . | . . . . Construction Impeded . | . . . . Haulers Reinforced . | . . . . Active Scanning Responses . | . . . . Cargo Convoy Interrupts . | . . . . Stealth | -11 -10 -9 -9 --------- Run | Scr Mat Mat Min Distress Signals 3 | . . 3 . Communications Jammed . | . . . . Distress Signals . | . . . . Times Spotted 23 | . 5 18 . Peak Tracking Total 11 | . 3 11 . Tactical Retreats 2 | . . 2 . Traps | -11 -10 -9 -9 ------- Run | Scr Mat Mat Min Traps Triggered . | . . . . Indirectly . | . . . . Trap Hack Attempts . | . . . . Triggered . | . . . . Disarmed . | . . . . Reprogrammed . | . . . . Reused . | . . . . Traps Extracted . | . . . . Installed . | . . . . Triggered . | . . . . Machines | -11 -10 -9 -9 ---------- Run | Scr Mat Mat Min Machines Disabled . | . . . . Max in Single Turn . | . . . . Machines Sabotaged . | . . . . Garrisons Compromised . | . . . . Overloaded Fab Kills . | . . . . Hacking | -11 -10 -9 -9 --------- Run | Scr Mat Mat Min Machines Accessed 7 | . 5 1 1 Terminals 6 | . 5 1 . Fabricators . | . . . . Repair Stations . | . . . . Recycling Units . | . . . . Scanalyzers . | . . . . Garrison Access . | . . . . Total Hacks 17 | . 15 1 1 Successful 12 | . 11 . 1 Failed 5 | . 4 1 . Catastrophic 1 | . 1 . . Database Lockouts . | . . . . Manual . | . . . . Terminals 16 | . 15 1 . Fabricators . | . . . . Repair Stations . | . . . . Recycling Units . | . . . . Scanalyzers . | . . . . Garrison Access . | . . . . Terminal Hacks 12 | . 11 . 1 Record 5 | . 5 . . Open Door 1 | . . . 1 Emergency Access Points 2 | . 2 . . Terminal Index 1 | . 1 . . Assault Status 1 | . 1 . . Hauler Manifests 1 | . 1 . . Registered Prototypes 1 | . 1 . . Fabricator Hacks . | . . . . Repair Station Hacks . | . . . . Recycling Unit Hacks . | . . . . Scanalyzer . | . . . . Garrison Access Hacks . | . . . . Unauthorized Hacks . | . . . . Terminals . | . . . . Fabricators . | . . . . Repair Stations . | . . . . Recycling Units . | . . . . Scanalyzers . | . . . . Garrison Access . | . . . . Data Cores Recovered . | . . . . Used . | . . . . Hacking Detections 4 | . 3 1 . Full Trace Events . | . . . . Feedback Events . | . . . . Feedback Blocked . | . . . . Robot Schematics Acquired . | . . . . Robots Built . | . . . . Authchips . | . . . . Time . | . . . . Total Robot Build Rating . | . . . . Part Schematics Acquired . | . . . . Parts Built . | . . . . Authchips . | . . . . Time . | . . . . Total Part Build Rating . | . . . . Parts Repaired . | . . . . Time . | . . . . Parts Recycled . | . . . . Recycled Matter . | . . . . Retrieved Matter . | . . . . Retrieved Components . | . . . . Parts Scanalyzed . | . . . . Part Schematics Acquired . | . . . . Parts Damaged . | . . . . Bothacking | -11 -10 -9 -9 ------------ Run | Scr Mat Mat Min Used RIF Installer . | . . . . Robots Hacked . | . . . . Non-combat . | . . . . Combat . | . . . . Robot Hacks Applied . | . . . . Relay Couplers Released . | . . . . Fabnet Peak Effective % . | . . . . Robots Rewired . | . . . . Allies Hacked . | . . . . Hacks Repelled . | . . . . Allies | -11 -10 -9 -9 -------- Run | Scr Mat Mat Min Total Allies 3 | . . . 3 Largest Group 3 | . . . 3 Highest-Rated Group 40 | . . . 40 Highest-Rated Ally 16 | . . . 16 Total Orders 21 | . . . 21 EXPLORE 20 | . . . 20 RETURN 1 | . . . 1 Ally Attacks . | . . . . Total Damage . | . . . . Kills . | . . . . Allies Corrupted . | . . . . Allies Melted . | . . . . Intel | -11 -10 -9 -9 ------- Run | Scr Mat Mat Min Robot Analysis Total . | . . . . Derelict Logs Recovered . | . . . . Drone Launches 20 | . . . 20 Drone Recoveries 15 | . . . 15 Exploration | -11 -10 -9 -9 ------------- Run | Scr Mat Mat Min Turns Passed 715 | 116 181 244 174 Spaces Moved 473 | 79 109 223 62 Core 158 | 6 . 90 62 Treads . | . . . . Legs 315 | 73 109 133 . Wheels . | . . . . Hover . | . . . . Flight . | . . . . Fastest Speed 50 | 50 120 50 50 Average Speed 100 | 114 120 91 75 Slowest Speed 250 | 120 120 120 250 Overloaded Moves . | . . . . Propulsion Burnouts . | . . . . Robots Hopped . | . . . . Cave-ins Triggered . | . . . . Exploration Rate (%) 37 | 4 31 22 92 Regions Visited 3 Branch Regions 1 Pre-discovered Areas . | . . . . Known Exits Taken . | . . . . Unknown Exits Taken 3 | 1 1 1 . Scrap Searched . | . . . . Spaces Dug . | . . . . Terrain Destroyed . | . . . . Melee . | . . . . Projectile . | . . . . AOE . | . . . . Terrain Rammed . | . . . . Walls Destroyed . | . . . . Machines Disabled . | . . . . Actions | -11 -10 -9 -9 --------- Run | Scr Mat Mat Min Total 669 | 99 128 253 189 Wait 134 | . . 10 124 Move 470 | 78 108 222 62 Hop . | . . . . Pick Up 17 | 10 2 4 1 Fast Attach . | . . . . Attach 10 | 7 . 2 1 Detach . | . . . . Swap . | . . . . Drop 7 | 1 . 5 1 Fire 26 | 3 17 6 . Melee . | . . . . Ram 4 | . . 4 . Kick 1 | . 1 . . Crush . | . . . . Escape Stasis . | . . . . Rewire . | . . . . Trap . | . . . . Miscellaneous . | . . . . Route ------- -11/Scrapyard -10/Materials (discovered 2 exits: *Mat / [*Min]) -9/Materials -9/Mines (discovered 2 exits: *Mat x2) History --------- Turn | Location | Event 29 | -11/Scrapyard | Discovered new exit (range 16) 117 | -11/Scrapyard | Entered Materials 186 | -10/Materials | Discovered new exit (range 14) 285 | -10/Materials | Discovered new exit (range 11) 298 | -10/Materials | Entered another Materials area 298 | -9/Materials | Evolved 2 slots: Propulsion x1, Utility x1 319 | -9/Materials | Build established: Mutant 513 | -9/Materials | Core integrity fell below 50% 518 | -9/Materials | Lost 4 parts (2n1u1w) 536 | -9/Materials | Core integrity fell below 20% 538 | -9/Materials | Discovered new exit (range 7) 542 | -9/Materials | Entered Mines 543 | -9/Mines | Assisted by bots powering up and referring to "LRC-V3" 568 | -9/Mines | Found the Drone Emporium 570 | -9/Mines | Found Prototype Device 571 | -9/Mines | Identified Sensor Drone Bay 574 | -9/Mines | Met a Derelict bent on vengeance 604 | -9/Mines | Discovered new exit (range 40) 604 | -9/Mines | Discovered new exit (range 57) 605 | -9/Mines | Identified exit to Materials 716 | -9/Mines | Self-destructed Last Messages --------------- K-01 Serf collects debris. Sensor Drone retrieved by Sensor Drone Bay. K-01 Serf cleans the Seismic Survey Station. Sensor Drone retrieved by Sensor Drone Bay. K-01 Serf cleans the Seismic Survey Station. Sensor Drone retrieved by Sensor Drone Bay. K-01 Serf cleans the Seismic Survey Station. Sensor Drone retrieved by Sensor Drone Bay. System corrupted: Matter fused (-10). K-01 Serf cleans the Seismic Survey Station. R-06 Scavenger collects Heat Sink. Sensor Drone retrieved by Sensor Drone Bay. L-31 Rogue sneak attacks. Sensor Drone retrieved by Sensor Drone Bay. Sensor Drone destroyed. K-01 Serf collects debris. L-31 Rogue sneak attacks. Sensor Drone destroyed. K-01 Serf collects debris. Sensor Drone retrieved by Sensor Drone Bay. Map ----- +----------------------------------------------------+ | ????????????## ##????????????# ##?# #?????## | | ????????????# ##?????????????# #### ####??# | | ????????????# ##?????????????# #??# | | ????????????## #######???????###### ## #??# | | ??????????###### #????????????# ## #### | | ??????????# #???????????## ## | | #?????????# ### #??????????## ####### | | ##????????# ##### ##?# #???????#### #?????# ## | | ########## #???####??# #??????## #?????# #? | | %% #?????????# #??????# ##?????# #? | | % #?????????# #?????## ##??????# #? | | ##############????????## #????## ##???????# #? | | #????????????????????## ##???# ##???###??# #? | | ????????????????????# ##?## ##???## #??# #? | | ????????????????????# ### ##????# #### #? | | ????????????????????# ##?????# #? | | ????????????????????# #?????## #? | | ???????????????????## #????## ####? | | ????????????????????## ##### #???## ##???? | | ?????????????????????####???# #??## ##????? | | ????????????????????????????# #### ##????# | | #??????????????????????######## ###?## | | ??????????????????????##""## ### ### | | ??????????????????????#" #X ### | | ??????????????????????#" g #### ## | | ??????????????????????#" @g g #### | | ??????????????????????#" g# ##??## | | ??????????????????????##""## ### #???## | | ???????????????????????##### #?# #??# | | ???????????????????????????# ##?##$ #??# | | ???????????????????????????## ##???# #??# | | ????????????????????????????######????## ##??# | | ???????????????????????????????????????#####??# | | ??????????????????????????????????????????????# | | ??????????????????????????????????????????????## | | ???????????????????????????????????????????????## | | ?????????????????????????????????????????????????# | | ?????????????????????????????????????????????????? | | | | | | | | | | | | | | | | | | | | | | | | | +----------------------------------------------------+ Best States ------------- Heat Dissipation 28 Energy Generation 10 Energy Capacity 250 Matter Stores 300 Matter Capacity 300 Sight Range 16 Terrain Scan Range 16 Terrain Scan Density 10 Evasion (%) 55 Item Schematics ----------------- None Robot Schematics ------------------ None Fabricated ------------ Nothing Alien Tech Used ----------------- None Achievements -------------- Release The Drones! Challenges ------------ None Game ------ Seed SurgeCoilRecalibrator Manual? 0 Play Time 00:09:37 Cumulative 27.6 hours Start 2022.12.10 @ 00:13:07 End 2022.12.10 @ 00:24:33 Sessions 1 Manual Loads 0 Difficulty Rogue Special Mode None Game No. 44 Rogue 44 Adventurer 0 Explorer 0 Win Type - Total 0 Types 0/0/0/0/0/0/0/0/0 Lore% 23 Gallery% 29 Achievement% 26 Wizard Run 0 Options --------- ASCII 0 Keyboard 0 Movement Arrows Keybinds 0 Fullscreen 2 Font 16/SmallcapsGlow Map View 76x50 Tactical HUD 0 Map Filters NONE Filters NONE Steam 1 RUN: eaa80952-482d-42e8-9b85-85ffc384ecbe